[Event "UK Open Blitz Championships 2024 - London Qualifier"]
[Site "London, United Kingdom"]
[Date "2024.09.21"]
[Round "12.1"]
[White "Korshunov, Sergey"]
[Black "Ghasi, Ameet K"]
[Result "1-0"]
[TimeControl "3 minutes + 2 seconds incr. from move 1"]
[WhiteTitle "FM"]
[BlackTitle "IM"]
[WhiteFideId "34274715"]
[BlackFideId "409200"]
[WhiteElo "2278"]
[BlackElo "2524"]

1. d4 {[%emt 00:00:07]} Nf6 2. c4 {[%clk 00:03:02]} g6 {[%clk 00:03:02]} 3. Nc3
{[%clk 00:03:02]} {[%emt 00:00:07]} Bg7 {[%clk 00:03:03]} 4. Nf3 {[%clk
00:03:01]} {[%emt 00:00:03]} d6 {[%clk 00:03:02]} {[%emt 00:00:04]} 5. g3
{[%clk 00:03:01]} {[%emt 00:00:01]} O-O {[%clk 00:03:02]} {[%emt 00:00:02]} 6.
Bg2 {[%clk 00:03:02]} {[%emt 00:00:01]} Nbd7 {[%clk 00:03:02]} {[%emt
00:00:02]} 7. O-O {[%clk 00:03:03]} {[%emt 00:00:02]} e5 {[%clk 00:03:03]}
{[%emt 00:00:01]} 8. e4 {[%clk 00:03:04]} {[%emt 00:00:01]} exd4 {[%clk
00:03:02]} {[%emt 00:00:03]} 9. Nxd4 {[%clk 00:03:04]} {[%emt 00:00:01]} Re8
{[%clk 00:02:56]} {[%emt 00:00:07]} 10. h3 {[%clk 00:02:56]} {[%emt 00:00:10]}
h6 {[%clk 00:02:54]} {[%emt 00:00:03]} 11. Re1 {[%clk 00:02:55]} {[%emt
00:00:04]} Nc5 {[%clk 00:02:55]} {[%emt 00:00:02]} 12. b3 {[%clk 00:02:29]}
{[%emt 00:00:28]} a5 {[%clk 00:02:52]} {[%emt 00:00:05]} 13. Bb2 {[%clk
00:02:26]} {[%emt 00:00:05]} a4 {[%clk 00:02:24]} {[%emt 00:00:30]} 14. b4
{[%clk 00:02:18]} {[%emt 00:00:10]} a3 {[%clk 00:02:25]} 15. Bc1 {[%clk
00:02:20]} Ne6 {[%clk 00:02:26]} 16. Be3 {[%clk 00:02:18]} {[%emt 00:00:03]}
Nh7 {[%clk 00:02:10]} {[%emt 00:00:18]} 17. Rc1 {[%clk 00:02:06]} {[%emt
00:00:14]} h5 {[%clk 00:01:49]} {[%emt 00:00:22]} 18. Nd5 {[%clk 00:01:55]}
{[%emt 00:00:13]} c6 {[%clk 00:01:44]} {[%emt 00:00:08]} 19. Nb6 {[%clk
00:01:39]} {[%emt 00:00:18]} Ra6 {[%clk 00:01:10]} {[%emt 00:00:36]} 20. Nxc8
{[%clk 00:01:22]} {[%emt 00:00:20]} Qxc8 {[%clk 00:01:11]} 21. b5 {[%clk
00:01:23]} {[%emt 00:00:01]} Ra8 {[%clk 00:01:03]} {[%emt 00:00:10]} 22. bxc6
{[%clk 00:01:22]} {[%emt 00:00:02]} bxc6 {[%clk 00:01:05]} 23. Nxe6 {[%clk
00:01:14]} {[%emt 00:00:10]} Qxe6 {[%clk 00:01:05]} {[%emt 00:00:01]} 24. Qc2
{[%clk 00:01:05]} {[%emt 00:00:11]} Reb8 {[%clk 00:01:05]} {[%emt 00:00:02]} 25.
e5 {[%clk 00:00:39]} {[%emt 00:00:28]} dxe5 {[%clk 00:01:06]} 26. Rb1 {[%clk
00:00:38]} {[%emt 00:00:03]} Nf6 {[%clk 00:01:02]} {[%emt 00:00:06]} 27. Rxb8+
{[%clk 00:00:34]} {[%emt 00:00:06]} Rxb8 {[%clk 00:01:02]} {[%emt 00:00:02]} 28.
Bc5 {[%clk 00:00:33]} {[%emt 00:00:03]} Bf8 {[%clk 00:00:53]} {[%emt 00:00:11]}
29. Bxf8 {[%clk 00:00:34]} Kxf8 {[%clk 00:00:54]} {[%emt 00:00:01]} 30. Qc3
{[%clk 00:00:35]} Qd6 {[%clk 00:00:44]} {[%emt 00:00:12]} 31. c5 {[%clk
00:00:27]} {[%emt 00:00:11]} Qd4 {[%clk 00:00:45]} 32. Qxa3 {[%clk 00:00:28]}
Nd5 {[%clk 00:00:39]} {[%emt 00:00:08]} 33. Qa6 {[%clk 00:00:18]} {[%emt
00:00:11]} Rb2 {[%clk 00:00:39]} {[%emt 00:00:03]} 34. Rf1 {[%clk 00:00:18]}
{[%emt 00:00:02]} Nb4 {[%clk 00:00:38]} {[%emt 00:00:02]} 35. Qc8+ {[%clk
00:00:18]} {[%emt 00:00:01]} Kg7 {[%clk 00:00:40]} {[%emt 00:00:02]} 36. a4
{[%clk 00:00:15]} {[%emt 00:00:04]} Qxc5 {[%clk 00:00:33]} {[%emt 00:00:08]} 37.
Qd7 {[%clk 00:00:14]} {[%emt 00:00:04]} Ra2 {[%clk 00:00:26]} {[%emt 00:00:09]}
38. Kh2 {[%clk 00:00:07]} {[%emt 00:00:09]} Rxf2 {[%clk 00:00:22]} {[%emt
00:00:06]} 39. Rxf2 {[%clk 00:00:08]} Qxf2 {[%clk 00:00:23]} 40. Qd6 {[%clk
00:00:09]} Qb2 {[%clk 00:00:11]} {[%emt 00:00:14]} 41. a5 {[%clk 00:00:09]}
{[%emt 00:00:02]} e4 {[%clk 00:00:13]} {[%emt 00:00:01]} 42. Qc5 {[%clk
00:00:09]} {[%emt 00:00:02]} Nd3 {[%clk 00:00:10]} {[%emt 00:00:05]} 43. Qe3
{[%clk 00:00:10]} f5 {[%clk 00:00:05]} {[%emt 00:00:07]} 44. a6 {[%clk
00:00:11]} Qa3 {[%clk 00:00:06]} {[%emt 00:00:01]} 45. Qd4+ {[%clk 00:00:11]}
{[%emt 00:00:02]} Kh7 {[%clk 00:00:05]} {[%emt 00:00:03]} 46. a7 {[%clk
00:00:12]} {[%emt 00:00:01]} Ne1 {[%clk 00:00:04]} {[%emt 00:00:03]} 47. Qd7+
{[%clk 00:00:12]} {[%emt 00:00:03]} Kh6 {[%clk 00:00:05]} 48. Qd2+ {[%clk
00:00:13]} Kh7 {[%clk 00:00:06]} {[%emt 00:00:01]} 49. Qxe1 {[%clk 00:00:14]}
Qxa7 {[%clk 00:00:07]} {[%emt 00:00:01]} 50. Qc3 {[%clk 00:00:15]} {[%emt
00:00:01]} Qd7 {[%clk 00:00:08]} 51. h4 {[%clk 00:00:13]} {[%emt 00:00:04]} Qd6
{[%emt 00:00:01]} 52. Qe3 {[%clk 00:00:14]} c5 {[%clk 00:00:11]} {[%emt
00:00:01]} 53. Bf1 {[%clk 00:00:15]} {[%emt 00:00:01]} Qd4 {[%clk 00:00:10]}
{[%emt 00:00:02]} 54. Qb3 {[%clk 00:00:14]} {[%emt 00:00:03]} Qf2+ {[%clk
00:00:11]} {[%emt 00:00:01]} 55. Bg2 {[%clk 00:00:15]} Qd4 {[%clk 00:00:12]}
{[%emt 00:00:01]} 56. Qf7+ {[%clk 00:00:17]} {[%emt 00:00:01]} Kh6 {[%clk
00:00:13]} 57. Qf8+ {[%clk 00:00:18]} Kh7 {[%clk 00:00:15]} 58. Qf7+ {[%clk
00:00:19]} Qg7 {[%clk 00:00:16]} 59. Qd5 {[%clk 00:00:19]} {[%emt 00:00:02]}
Qe7 {[%clk 00:00:17]} {[%emt 00:00:01]} 60. Bf1 {[%clk 00:00:20]} {[%emt
00:00:01]} Kg7 {[%clk 00:00:13]} {[%emt 00:00:06]} 61. Bc4 {[%clk 00:00:21]}
Kf6 {[%clk 00:00:15]} 62. Kg2 {[%clk 00:00:20]} {[%emt 00:00:03]} Kg7 {[%clk
00:00:10]} {[%emt 00:00:07]} 63. Kf2 {[%clk 00:00:21]} {[%emt 00:00:01]} Qa7
{[%clk 00:00:09]} {[%emt 00:00:04]} 64. Qg8+ {[%clk 00:00:21]} {[%emt
00:00:02]} Kf6 {[%clk 00:00:06]} {[%emt 00:00:05]} 65. Qh8+ {[%clk 00:00:17]}
{[%emt 00:00:06]} Ke7 {[%clk 00:00:06]} {[%emt 00:00:03]} 66. Qg7+ {[%clk
00:00:18]} 1-0

[Event "UK Open Blitz Championships 2024 - London Qualifier"]
[Site "London, United Kingdom"]
[Date "2024.09.21"]
[Round "12.2"]
[White "Roberson, Peter T"]
[Black "Gasanov, Eldar"]
[Result "0-1"]
[TimeControl "3 minutes + 2 seconds incr. from move 1"]
[WhiteTitle "IM"]
[BlackTitle "GM"]
[WhiteFideId "412384"]
[BlackFideId "14104466"]
[WhiteElo "2346"]
[BlackElo "2467"]

1. e4 {[%clk 00:03:02]} {[%emt 00:00:02]} c5 {[%clk 00:03:03]} {[%emt
00:00:01]} 2. Be2 {[%clk 00:03:03]} {[%emt 00:00:01]} Nc6 {[%clk 00:03:00]}
{[%emt 00:00:05]} 3. f4 {[%clk 00:03:04]} {[%emt 00:00:01]} d5 {[%clk
00:02:58]} {[%emt 00:00:04]} 4. d3 {[%clk 00:03:05]} {[%emt 00:00:02]} e6
{[%clk 00:02:58]} {[%emt 00:00:02]} 5. Nf3 {[%clk 00:03:06]} {[%emt 00:00:01]}
f6 {[%clk 00:02:48]} {[%emt 00:00:11]} 6. O-O {[%clk 00:02:58]} {[%emt
00:00:10]} Bd6 {[%clk 00:02:49]} {[%emt 00:00:01]} 7. Nc3 {[%clk 00:02:54]}
{[%emt 00:00:06]} Nge7 {[%clk 00:02:48]} {[%emt 00:00:02]} 8. Kh1 {[%clk
00:02:35]} {[%emt 00:00:22]} O-O {[%clk 00:02:46]} {[%emt 00:00:03]} 9. Qe1
{[%clk 00:02:28]} {[%emt 00:00:09]} a6 {[%clk 00:02:38]} {[%emt 00:00:10]} 10.
Bd2 {[%clk 00:02:00]} {[%emt 00:00:31]} Qc7 {[%clk 00:02:36]} {[%emt 00:00:03]}
11. Qg3 {[%clk 00:01:51]} {[%emt 00:00:12]} Bd7 {[%clk 00:02:23]} {[%emt
00:00:14]} 12. Rae1 {[%clk 00:01:48]} {[%emt 00:00:05]} b5 {[%clk 00:02:14]}
{[%emt 00:00:11]} 13. Bd1 {[%clk 00:01:43]} {[%emt 00:00:07]} b4 {[%clk
00:02:12]} {[%emt 00:00:04]} 14. Ne2 {[%clk 00:01:44]} {[%emt 00:00:01]} Ng6
{[%clk 00:02:05]} {[%emt 00:00:09]} 15. Qf2 {[%clk 00:01:23]} {[%emt 00:00:23]}
a5 {[%clk 00:01:02]} {[%emt 00:01:05]} 16. c3 {[%clk 00:01:14]} {[%emt
00:00:11]} bxc3 {[%clk 00:00:48]} {[%emt 00:00:16]} 17. bxc3 {[%clk 00:01:15]}
Rab8 {[%clk 00:00:48]} {[%emt 00:00:01]} 18. f5 {[%clk 00:01:01]} {[%emt
00:00:16]} Nge7 {[%clk 00:00:45]} {[%emt 00:00:05]} 19. fxe6 {[%clk 00:00:56]}
{[%emt 00:00:07]} Bxe6 {[%clk 00:00:45]} {[%emt 00:00:02]} 20. Bb3 {[%clk
00:00:56]} {[%emt 00:00:02]} a4 {[%clk 00:00:30]} {[%emt 00:00:17]} 21. Bxa4
{[%clk 00:00:46]} {[%emt 00:00:12]} dxe4 {[%clk 00:00:31]} {[%emt 00:00:01]} 22.
dxe4 {[%clk 00:00:43]} {[%emt 00:00:05]} Bxa2 {[%clk 00:00:27]} {[%emt
00:00:05]} 23. Be3 {[%clk 00:00:32]} {[%emt 00:00:13]} Bc4 {[%clk 00:00:27]}
{[%emt 00:00:02]} 24. Bxc5 {[%clk 00:00:28]} {[%emt 00:00:06]} Rb2 {[%clk
00:00:22]} {[%emt 00:00:06]} 25. Bxd6 {[%clk 00:00:22]} {[%emt 00:00:08]} Qxd6
{[%clk 00:00:23]} {[%emt 00:00:01]} 26. Qe3 {[%clk 00:00:24]} Ra8 {[%clk
00:00:21]} {[%emt 00:00:04]} 27. Bxc6 {[%clk 00:00:23]} {[%emt 00:00:03]} Nxc6
{[%clk 00:00:22]} 28. Ned4 {[%clk 00:00:24]} Bxf1 {[%clk 00:00:20]} {[%emt
00:00:04]} 29. Rxf1 {[%clk 00:00:26]} Ne5 {[%clk 00:00:19]} {[%emt 00:00:04]}
30. Nf5 {[%clk 00:00:26]} {[%emt 00:00:02]} Qd3 {[%clk 00:00:16]} {[%emt
00:00:04]} 31. Nxe5 {[%clk 00:00:20]} {[%emt 00:00:09]} Qxf1+ {[%clk 00:00:17]}
{[%emt 00:00:01]} 0-1

[Event "UK Open Blitz Championships 2024 - London Qualifier"]
[Site "London, United Kingdom"]
[Date "2024.09.21"]
[Round "12.3"]
[White "Turner, Max N"]
[Black "Royal, Shreyas"]
[Result "0-1"]
[TimeControl "3 minutes + 2 seconds incr. from move 1"]
[WhiteTitle "CM"]
[BlackTitle "IM"]
[WhiteFideId "447722"]
[BlackFideId "448869"]
[WhiteElo "2157"]
[BlackElo "2331"]

1. d4 {[%clk 00:03:02]} {[%emt 00:00:02]} Nf6 {[%clk 00:03:03]} {[%emt
00:00:01]} 2. c4 {[%clk 00:03:03]} e6 {[%clk 00:03:04]} 3. Nf3 {[%clk
00:03:03]} b6 {[%clk 00:03:05]} {[%emt 00:00:01]} 4. g3 {[%clk 00:03:04]}
{[%emt 00:00:01]} Ba6 {[%clk 00:03:06]} 5. b3 {[%clk 00:03:03]} {[%emt
00:00:03]} Bb4+ {[%clk 00:03:06]} {[%emt 00:00:02]} 6. Bd2 {[%clk 00:03:04]}
{[%emt 00:00:01]} Be7 {[%clk 00:03:07]} 7. Nc3 {[%clk 00:03:01]} {[%emt
00:00:05]} d5 {[%clk 00:03:08]} {[%emt 00:00:02]} 8. cxd5 {[%clk 00:03:01]}
{[%emt 00:00:02]} exd5 {[%clk 00:03:08]} {[%emt 00:00:02]} 9. Bg2 {[%clk
00:03:02]} O-O {[%clk 00:03:08]} {[%emt 00:00:02]} 10. O-O {[%clk 00:03:03]}
{[%emt 00:00:01]} Bb7 {[%clk 00:03:09]} 11. Ne5 {[%clk 00:03:03]} {[%emt
00:00:02]} Nbd7 {[%clk 00:03:07]} {[%emt 00:00:04]} 12. Nd3 {[%clk 00:03:04]}
{[%emt 00:00:02]} Re8 {[%clk 00:03:05]} {[%emt 00:00:03]} 13. Nf4 {[%clk
00:02:55]} {[%emt 00:00:10]} c6 {[%clk 00:03:06]} {[%emt 00:00:01]} 14. e4
{[%clk 00:02:55]} {[%emt 00:00:02]} dxe4 {[%clk 00:03:02]} {[%emt 00:00:06]} 15.
Nxe4 {[%clk 00:02:56]} {[%emt 00:00:02]} Nxe4 {[%clk 00:03:02]} {[%emt
00:00:02]} 16. Bxe4 {[%clk 00:02:56]} {[%emt 00:00:01]} Nf6 {[%clk 00:03:03]}
17. Bg2 {[%clk 00:02:42]} {[%emt 00:00:16]} Qxd4 {[%clk 00:03:03]} {[%emt
00:00:02]} 18. Qc2 {[%clk 00:02:36]} {[%emt 00:00:09]} Qd7 {[%clk 00:02:57]}
{[%emt 00:00:08]} 19. Rfd1 {[%clk 00:02:14]} {[%emt 00:00:24]} c5 {[%clk
00:02:57]} {[%emt 00:00:02]} 20. Bc3 {[%clk 00:02:10]} {[%emt 00:00:06]} Qc8
{[%clk 00:02:58]} {[%emt 00:00:02]} 21. Bh3 {[%clk 00:02:10]} {[%emt 00:00:03]}
Qc7 {[%clk 00:02:51]} {[%emt 00:00:09]} 22. Qb2 {[%clk 00:01:52]} {[%emt
00:00:20]} Rad8 {[%clk 00:02:46]} {[%emt 00:00:07]} 23. Be5 {[%clk 00:01:46]}
{[%emt 00:00:08]} Qc6 {[%clk 00:02:41]} {[%emt 00:00:07]} 24. Bg2 {[%clk
00:01:47]} Qc8 {[%clk 00:02:38]} {[%emt 00:00:04]} 25. Bh3 {[%clk 00:01:39]}
{[%emt 00:00:10]} Qa8 {[%clk 00:02:40]} 26. Re1 {[%clk 00:01:05]} {[%emt
00:00:36]} Bf3 {[%clk 00:02:26]} {[%emt 00:00:15]} 27. Qc3 {[%clk 00:00:54]}
{[%emt 00:00:13]} Be4 {[%clk 00:02:09]} {[%emt 00:00:19]} 28. Re3 {[%clk
00:00:50]} {[%emt 00:00:06]} Bc6 {[%clk 00:01:50]} {[%emt 00:00:20]} 29. Rae1
{[%clk 00:00:51]} {[%emt 00:00:01]} Ne4 {[%clk 00:01:52]} {[%emt 00:00:01]} 30.
Rxe4 {[%clk 00:00:32]} {[%emt 00:00:20]} Bxe4 {[%clk 00:01:52]} {[%emt
00:00:01]} 31. Bxg7 {[%clk 00:00:32]} {[%emt 00:00:03]} Qc6 {[%clk 00:01:48]}
{[%emt 00:00:06]} 32. Bh8 {[%clk 00:00:14]} {[%emt 00:00:19]} f6 {[%clk
00:01:46]} {[%emt 00:00:04]} 33. Ne6 {[%clk 00:00:07]} {[%emt 00:00:10]} Kxh8
{[%clk 00:01:32]} {[%emt 00:00:16]} 34. f3 {[%clk 00:00:07]} {[%emt 00:00:02]}
Rd3 {[%clk 00:01:30]} {[%emt 00:00:04]} 35. Qc4 {[%clk 00:00:04]} {[%emt
00:00:05]} Rxf3 {[%clk 00:01:23]} {[%emt 00:00:08]} 36. Rxe4 {[%clk 00:00:03]}
{[%emt 00:00:03]} Rc3 {[%clk 00:01:16]} {[%emt 00:00:08]} 37. Qe2 {[%clk
00:00:03]} {[%emt 00:00:02]} Rc1+ {[%clk 00:01:16]} {[%emt 00:00:03]} 38. Bf1
{[%clk 00:00:05]} c4 {[%clk 00:01:11]} {[%emt 00:00:07]} 39. Qe3 {[%clk
00:00:06]} {[%emt 00:00:01]} Rb1 {[%clk 00:01:05]} {[%emt 00:00:07]} 40. Qh6
{[%clk 00:00:07]} Bc5+ {[%clk 00:00:57]} {[%emt 00:00:10]} 41. Nxc5 {[%clk
00:00:04]} {[%emt 00:00:05]} Qxc5+ {[%clk 00:00:58]} 42. Kg2 {[%clk 00:00:03]}
{[%emt 00:00:03]} Rxe4 {[%clk 00:00:56]} {[%emt 00:00:03]} 43. Qxf6+ {[%clk
00:00:04]} Kg8 {[%clk 00:00:58]} 44. Bxc4+ {[%clk 00:00:03]} {[%emt 00:00:03]}
Rxc4 {[%clk 00:00:57]} {[%emt 00:00:03]} 45. Qe6+ {[%clk 00:00:05]} Kg7 {[%clk
00:00:55]} {[%emt 00:00:04]} 46. Qd7+ {[%clk 00:00:05]} {[%emt 00:00:02]} Kf8
{[%clk 00:00:53]} {[%emt 00:00:02]} 47. Qd8+ {[%clk 00:00:05]} {[%emt
00:00:02]} Kf7 {[%clk 00:00:55]} 48. Qd7+ {[%clk 00:00:07]} Kf6 {[%clk
00:00:55]} {[%emt 00:00:01]} 49. Qd8+ {[%clk 00:00:05]} {[%emt 00:00:04]} Qe7
{[%clk 00:00:56]} 50. Qh8+ {[%clk 00:00:06]} Ke6 {[%clk 00:00:50]} {[%emt
00:00:08]} 51. Qg8+ {[%clk 00:00:07]} {[%emt 00:00:01]} Kd6 {[%clk 00:00:50]}
{[%emt 00:00:02]} 52. Qxc4 {[%clk 00:00:03]} {[%emt 00:00:06]} Rb2+ {[%clk
00:00:51]} 53. Kh3 {[%clk 00:00:04]} Qe6+ {[%clk 00:00:51]} {[%emt 00:00:02]}
0-1

[Event "UK Open Blitz Championships 2024 - London Qualifier"]
[Site "London, United Kingdom"]
[Date "2024.09.21"]
[Round "12.4"]
[White "Banerjee, Supratit"]
[Black "Czopor, Maciej"]
[Result "0-1"]
[TimeControl "3 minutes + 2 seconds incr. from move 1"]
[WhiteTitle "CM"]
[BlackTitle "FM"]
[WhiteFideId "2410079"]
[BlackFideId "21805431"]
[WhiteElo "2138"]
[BlackElo "2320"]

1. e4 {[%clk 00:03:01]} {[%emt 00:00:02]} Nc6 {[%clk 00:03:03]} {[%emt
00:00:01]} 2. d4 {[%clk 00:03:03]} d5 {[%clk 00:03:05]} 3. exd5 {[%clk
00:02:58]} {[%emt 00:00:06]} Qxd5 {[%clk 00:03:06]} 4. Nf3 {[%clk 00:03:00]}
{[%emt 00:00:01]} Bg4 {[%clk 00:03:07]} 5. Be2 {[%clk 00:03:01]} O-O-O {[%clk
00:03:01]} {[%emt 00:00:08]} 6. c4 {[%clk 00:03:00]} {[%emt 00:00:03]} Qf5
{[%clk 00:02:24]} {[%emt 00:00:39]} 7. d5 {[%clk 00:02:44]} {[%emt 00:00:18]}
e6 {[%clk 00:02:04]} {[%emt 00:00:22]} 8. Nc3 {[%clk 00:02:44]} {[%emt
00:00:02]} Nf6 {[%clk 00:01:48]} {[%emt 00:00:18]} 9. h3 {[%clk 00:02:40]}
{[%emt 00:00:06]} Bxf3 {[%clk 00:01:48]} {[%emt 00:00:03]} 10. Bxf3 {[%clk
00:02:41]} Ne5 {[%clk 00:01:45]} {[%emt 00:00:05]} 11. Be2 {[%clk 00:02:38]}
{[%emt 00:00:05]} Bb4 {[%clk 00:01:40]} {[%emt 00:00:07]} 12. O-O {[%clk
00:02:07]} {[%emt 00:00:33]} Bxc3 {[%clk 00:01:40]} {[%emt 00:00:02]} 13. bxc3
{[%clk 00:02:08]} exd5 {[%clk 00:01:41]} 14. Qa4 {[%clk 00:02:06]} {[%emt
00:00:04]} Kb8 {[%clk 00:01:38]} {[%emt 00:00:05]} 15. Be3 {[%clk 00:02:05]}
{[%emt 00:00:04]} a6 {[%clk 00:01:34]} {[%emt 00:00:06]} 16. Rab1 {[%clk
00:02:05]} {[%emt 00:00:02]} Kc8 {[%clk 00:00:59]} {[%emt 00:00:38]} 17. cxd5
{[%clk 00:01:54]} {[%emt 00:00:13]} Nxd5 {[%clk 00:00:57]} {[%emt 00:00:04]} 18.
Rb3 {[%clk 00:00:59]} {[%emt 00:00:56]} Rd6 {[%clk 00:00:46]} {[%emt 00:00:13]}
19. Rfb1 {[%clk 00:00:42]} {[%emt 00:00:19]} Nxe3 {[%clk 00:00:44]} {[%emt
00:00:04]} 20. fxe3 {[%clk 00:00:42]} {[%emt 00:00:01]} b5 {[%clk 00:00:29]}
{[%emt 00:00:17]} 21. Bxb5 {[%clk 00:00:31]} {[%emt 00:00:13]} axb5 {[%clk
00:00:31]} 22. Qa8+ {[%clk 00:00:32]} Kd7 {[%clk 00:00:32]} 23. Qxh8 {[%clk
00:00:28]} {[%emt 00:00:06]} Nf3+ {[%clk 00:00:23]} {[%emt 00:00:12]} 24. Kh1
{[%clk 00:00:17]} {[%emt 00:00:13]} Qe5 {[%clk 00:00:22]} {[%emt 00:00:04]} 25.
gxf3 {[%clk 00:00:12]} {[%emt 00:00:07]} Rd2 {[%clk 00:00:23]} 26. f4 {[%clk
00:00:05]} {[%emt 00:00:09]} Qe4+ {[%clk 00:00:24]} 27. Kg1 {[%clk 00:00:06]}
Qg2# {[%clk 00:00:25]} 0-1

[Event "UK Open Blitz Championships 2024 - London Qualifier"]
[Site "London, United Kingdom"]
[Date "2024.09.21"]
[Round "13.3"]
[White "Czopor, Maciej"]
[Black "Korshunov, Sergey"]
[Result "1-0"]
[TimeControl "3 minutes + 2 seconds incr. from move 1"]
[WhiteTitle "FM"]
[BlackTitle "FM"]
[WhiteFideId "21805431"]
[BlackFideId "34274715"]
[WhiteElo "2320"]
[BlackElo "2278"]

1. e4 {[%clk 00:03:03]} e5 {[%clk 00:03:02]} {[%emt 00:00:03]} 2. Nf3 {[%clk
00:03:04]} {[%emt 00:00:02]} Nc6 {[%clk 00:03:03]} {[%emt 00:00:01]} 3. Bc4
{[%clk 00:03:04]} Bc5 {[%clk 00:03:04]} 4. c3 {[%clk 00:03:05]} {[%emt
00:00:02]} Nf6 {[%clk 00:03:05]} 5. d4 {[%clk 00:03:06]} exd4 {[%clk 00:03:05]}
{[%emt 00:00:02]} 6. b4 {[%clk 00:03:07]} Bb6 {[%clk 00:03:01]} {[%emt
00:00:06]} 7. e5 {[%clk 00:03:02]} {[%emt 00:00:07]} d5 {[%clk 00:03:01]}
{[%emt 00:00:02]} 8. exf6 {[%clk 00:03:01]} {[%emt 00:00:03]} dxc4 {[%clk
00:03:02]} {[%emt 00:00:01]} 9. Qe2+ {[%clk 00:03:02]} Be6 {[%clk 00:02:59]}
{[%emt 00:00:06]} 10. b5 {[%clk 00:03:02]} {[%emt 00:00:01]} Na5 {[%clk
00:02:56]} {[%emt 00:00:05]} 11. fxg7 {[%clk 00:03:01]} {[%emt 00:00:03]} Rg8
{[%clk 00:02:57]} 12. cxd4 {[%clk 00:03:02]} {[%emt 00:00:01]} Qf6 {[%clk
00:02:01]} {[%emt 00:00:58]} 13. Nc3 {[%clk 00:02:49]} {[%emt 00:00:15]} Rxg7
{[%clk 00:01:44]} {[%emt 00:00:19]} 14. Ne4 {[%clk 00:02:41]} {[%emt 00:00:10]}
Qf5 {[%clk 00:01:35]} {[%emt 00:00:09]} 15. Bg5 {[%clk 00:02:36]} {[%emt
00:00:09]} h6 {[%clk 00:00:56]} {[%emt 00:00:41]} 16. Nh4 {[%clk 00:02:32]}
{[%emt 00:00:06]} Qxb5 {[%clk 00:00:51]} {[%emt 00:00:07]} 17. Nf6+ {[%clk
00:02:28]} {[%emt 00:00:06]} Kd8 {[%clk 00:00:49]} {[%emt 00:00:04]} 18. Bxh6
{[%clk 00:02:20]} {[%emt 00:00:11]} Qb4+ {[%clk 00:00:43]} {[%emt 00:00:08]} 19.
Kf1 {[%clk 00:02:07]} {[%emt 00:00:15]} c3 {[%clk 00:00:08]} {[%emt 00:00:37]}
20. d5 {[%clk 00:02:08]} Rg4 {[%clk 00:00:03]} {[%emt 00:00:07]} 21. dxe6
{[%clk 00:01:56]} {[%emt 00:00:14]} 1-0